fUSD/lending_fUSD_20250904
["ID","MTS","AMOUNT","RATE_DAILY","PERIOD"]
[383580636,1757005841272,-455.17,0.00024497,2]
[383580638,1757005841282,-400.0,0.00024497,2]
[383580640,1757005841292,-400.0,0.00024497,2]
[383580642,1757005841301,-400.0,0.00024497,2]
[383580644,1757005841311,-400.0,0.00024497,2]
[383580646,1757005841320,-400.0,0.00024497,2]
[383580648,1757005841329,-400.0,0.00024497,2]
[383580650,1757005841338,-400.0,0.00024497,2]
[383580652,1757005841347,-400.0,0.00024497,2]
[383580653,1757005841356,-400.0,0.00024497,2]
[383580654,1757005841364,-400.0,0.00024497,2]
[383580655,1757005841373,-400.0,0.00024497,2]
[383580656,1757005841382,-400.0,0.00024497,2]
[383580657,1757005841391,-400.0,0.00024497,2]
[383580658,1757005841399,-400.0,0.00024497,2]
[383580659,1757005841408,-377.15968363,0.00024497,2]
[383580660,1757005841599,-22.84031637,0.00024497,2]
[383580661,1757005841614,-400.0,0.00024497,2]
[383580662,1757005841624,-400.0,0.00024497,2]
[383580663,1757005841633,-259.98334496,0.00024497,2]
[383580664,1757005841675,-172.22195688,0.00020181,2]
[383580665,1757005841686,-262.36421622,0.00020181,2]
[383580666,1757005841719,-51.65847577,0.00020181,2]
[383580667,1757005841729,-383.78240317,0.00020181,2]
[383580668,1757005841740,-724.0,0.00023302,2]
[383580669,1757005841750,-140.01665504,0.00024497,2]
[383580670,1757005841760,-400.0,0.00024497,2]
[383580671,1757005841772,-400.0,0.00024497,2]
[383580672,1757005841782,-400.0,0.00024497,2]
[383580673,1757005841792,-400.0,0.00024497,2]
[383580674,1757005841803,-400.0,0.00024497,2]
[383580675,1757005841813,-405.1096039,0.00024497,2]
[383580676,1757005841827,-400.0,0.00024497,2]
[383580677,1757005841837,-400.0,0.00024497,2]
[383580678,1757005841849,-400.0,0.00024497,2]
[383580679,1757005841859,-400.0,0.00024497,2]
[383580680,1757005841869,-400.0,0.00024497,2]
[383580681,1757005841888,-408.84,0.00024497,2]
[383580682,1757005841900,-400.0,0.00024497,2]
[383580683,1757005841911,-400.0,0.00024497,2]
[383580684,1757005841922,-400.0,0.00024497,2]
[383580685,1757005841931,-400.0,0.00024497,2]
[383580686,1757005841943,-400.0,0.00024497,2]
[383580687,1757005841953,-217.45605043,0.00024497,2]
[383580688,1757005841963,-400.0,0.00024497,2]
[383580689,1757005841973,-400.0,0.00024497,2]
[383580690,1757005841983,-400.0,0.00024497,2]
[383580691,1757005841995,-159.1358742,0.00024497,2]
[383580692,1757005842004,-400.0,0.00024497,2]
[383580693,1757005842014,-400.0,0.00024498,2]
[383580694,1757005842024,-400.0,0.00024498,2]
[383580695,1757005842034,-400.0,0.00024498,2]
[383580696,1757005842043,-400.0,0.00024498,2]
[383580697,1757005842053,-400.0,0.00024498,2]
[383580698,1757005842063,-400.0,0.00024498,2]
[383580699,1757005842073,-218.70437732,0.00024498,2]
[383580700,1757005842085,-400.0,0.00024498,2]
[383580701,1757005842095,-400.0,0.00024498,2]
[383580702,1757005842106,-400.0,0.00024498,2]
[383580703,1757005842118,-400.0,0.00024498,2]
[383580704,1757005842127,-400.0,0.00024498,2]
[383580705,1757005842138,-400.0,0.00024498,2]
[383580706,1757005842148,-400.0,0.00024498,2]
[383580707,1757005842159,-400.0,0.00024498,2]
[383580708,1757005842169,-479.37,0.00024498,2]
[383580709,1757005842180,-400.0,0.00024498,2]
[383580710,1757005842190,-438.53,0.00024498,2]
[383580711,1757005842200,-400.0,0.00024498,2]
[383580712,1757005842210,-400.0,0.00024498,2]
[383580713,1757005842219,-400.0,0.00024498,2]
[383580714,1757005842229,-400.0,0.00024498,2]
[383580715,1757005842239,-400.0,0.00024498,2]
[383580716,1757005842249,-400.0,0.00024498,2]
[383580717,1757005842258,-400.0,0.00024498,2]
[383580718,1757005842268,-400.0,0.00024498,2]
[383580719,1757005842278,-400.0,0.00024498,2]
[383580720,1757005842287,-400.0,0.00024498,2]
[383580721,1757005842297,-400.0,0.00024498,2]
[383580722,1757005842307,-500.0,0.00024498,2]
[383580723,1757005842317,-400.0,0.00024498,2]
[383580724,1757005842327,-151.0,0.00024498,7]
[383580725,1757005842338,-400.0,0.00024498,2]
[383580726,1757005842347,-400.0,0.00024498,2]
[383580727,1757005842357,-400.0,0.00024498,2]
[383580728,1757005842366,-1139.579,0.000245,7]
[383580729,1757005842376,-300.0,0.00024568,2]
[383580730,1757005842386,-400.95471153,0.00024568,2]
[383580731,1757005842396,-400.0,0.00024568,2]
[383580732,1757005842405,-83057.84427409,0.00024569,2]
[383580733,1757005842427,-10201.25924588,0.00024569,2]
[383580734,1757005842439,-4978.24107518,0.00024569,2]
[383580735,1757005842453,-5895.92852039,0.00024569,2]
[383580736,1757005842660,-400.0,0.00024497,2]
[383580737,1757005842670,-456.82,0.00024497,2]
[383580738,1757005842681,-400.0,0.00024497,2]
[383580739,1757005842691,-514.58169634,0.00024497,2]
[383580740,1757005842702,-400.0,0.00024497,2]
[383580741,1757005842712,-533.26190868,0.00024569,2]
[383580743,1757005842999,-400.0,0.00024497,2]
[383580744,1757005843010,-400.0,0.00024497,2]
[383580745,1757005843021,-275.9536,0.00024497,2]
[383580746,1757005843201,-124.0464,0.00024497,2]
[383580747,1757005843212,-347.2095003,0.00024497,2]
[383580859,1757005846285,-433.37,0.00024353,2]
[383580860,1757005846296,-52.7904997,0.00024497,2]
[383580861,1757005846306,-400.0,0.00024497,2]
[383580862,1757005846317,-101.78548898,0.00024497,2]
[383580863,1757005846330,-260.732112,0.00024497,2]
[383581013,1757006264747,500.0,0.00013699,2]
[383581020,1757006442646,151.66,0.00011321,2]
[383581021,1757006442879,151.66,0.00012939,2]
[383581022,1757006443109,151.66,0.00014556,2]
[383581023,1757006443393,151.66,0.00016173,2]
[383581024,1757006443641,151.66,0.00017791,2]
[383581025,1757006443874,151.66,0.00019408,2]
[383581026,1757006663027,171.69,0.00013699,2]
[383581027,1757006708931,92212.69539748,0.0002,2]
[383581049,1757007031989,-171.69,0.00020187,2]
[383581051,1757007032001,-151.66,0.00021025,2]
[383581053,1757007032012,-89.29213996,0.00022,2]
[383581060,1757007032098,-170.92786004,0.00022,2]
[383581061,1757007032108,-224.44546057,0.00022,2]
[383581062,1757007032118,-219.8158844,0.00022094,2]
[383581063,1757007032129,-437.04413521,0.00022094,2]
[383581064,1757007032140,-521.61,0.000221,2]
[383581065,1757007032151,-253.13,0.000221,2]
[383581066,1757007032163,-151.0,0.00022209,2]
[383581067,1757007032174,-151.0,0.00022223,2]
[383581068,1757007032185,-151.0,0.0002224,2]
[383581069,1757007032196,-151.0,0.00022249,2]
[383581070,1757007032207,-151.66,0.00022643,2]
[383581071,1757007032218,-1104.43,0.00022643,2]
[383581072,1757007032229,-160.0,0.00022643,7]
[383581073,1757007032239,-1200.0,0.00022851,2]
[383581074,1757007032249,-3748.33,0.00022852,2]
[383581075,1757007032260,-533.0,0.000229,2]
[383581076,1757007032270,-199.18,0.00022922,2]
[383581077,1757007032281,-10318.0999845,0.00022945,7]
[383581078,1757007032293,-5313.421693,0.00022945,7]
[383581079,1757007032305,-284.23252147,0.00022945,7]
[383581080,1757007032318,-9586.64580103,0.00022945,7]
[383581081,1757007032328,-212.59699798,0.00022945,7]
[383581082,1757007032338,-514.64478986,0.00022945,7]
[383581083,1757007032349,-160.0,0.00022945,7]
[383581084,1757007032359,-250.0,0.00023,7]
[383581085,1757007032369,-666.0,0.00023063,3]
[383581086,1757007032381,-329.2,0.00023118,2]
[383581087,1757007032392,-3010.21128815,0.00023307,2]
[383581088,1757007032404,-239.84119403,0.00023319,2]
[383581089,1757007032416,-164.55,0.00023322,2]
[383581090,1757007032427,-1000.0,0.00023726,2]
[383581092,1757007032437,-322.6107,0.00023844,2]
[383581094,1757007032447,-514.64478986,0.00023852,2]
[383581096,1757007032457,-160.0,0.00023852,2]
[383581098,1757007032468,-160.0,0.00023853,2]
[383581100,1757007032478,-212.59699798,0.00023853,2]
[383581102,1757007032487,-567.0,0.00023859,2]
[383581104,1757007032498,-1577.0,0.00023859,2]
[383581106,1757007032509,-1300.0,0.00023859,2]
[383581109,1757007032519,-600.0,0.00023859,2]
[383581111,1757007032530,-811.0,0.00023859,2]
[383581113,1757007032540,-1175.0,0.00023859,2]
[383581115,1757007032550,-896.0,0.00023859,2]
[383581117,1757007032561,-4163.0,0.00023859,2]
[383581119,1757007032571,-2035.0,0.00023859,2]
[383581121,1757007032581,-924.0,0.00023859,2]
[383581122,1757007032592,-3382.0,0.00023859,2]
[383581123,1757007032602,-3010.21128815,0.00024,7]
[383581124,1757007032613,-160.0,0.00024,7]
[383581125,1757007032624,-521.61,0.00024,2]
[383581126,1757007032635,-253.13,0.00024,2]
[383581127,1757007032646,-523.0,0.0002408,2]
[383581128,1757007032656,-400.0,0.00024353,2]
[383581129,1757007032669,-400.0,0.00024353,2]
[383581130,1757007032679,-467.48,0.00024353,2]
[383581131,1757007032695,-400.0,0.00024353,2]
[383581132,1757007032705,-400.0,0.00024353,2]
[383581133,1757007032719,-400.0,0.00024353,2]
[383581134,1757007032729,-400.0,0.00024353,2]
[383581135,1757007032740,-400.0,0.00024353,2]
[383581136,1757007032751,-400.0,0.00024353,2]
[383581137,1757007032763,-400.0,0.00024353,2]
[383581138,1757007032773,-485.93,0.00024353,2]
[383581139,1757007032783,-400.0,0.00024353,2]
[383581140,1757007032793,-467.33,0.00024353,2]
[383581141,1757007032803,-400.0,0.00024353,2]
[383581142,1757007032813,-459.63,0.00024353,2]
[383581143,1757007032823,-400.0,0.00024353,2]
[383581144,1757007032834,-400.0,0.00024353,2]
[383581145,1757007032843,-500.0,0.00024353,2]
[383581146,1757007032854,-487.64,0.00024353,2]
[383581147,1757007032864,-2294.39968604,0.00024459,2]
[383581148,1757007032874,-22832.13933458,0.0002449,2]
[383581149,1757007032895,-1678.4915174,0.0002449,2]
[383581150,1757007032907,-410.12,0.0002449,2]
[383581152,1757007038042,-1258.0,0.00023859,2]
[383581153,1757007038057,-56072.90715294,0.0002449,2]
[383581154,1757007038067,-400.0,0.00024495,2]
[383581155,1757007038077,-335.53,0.00024495,2]
[383581156,1757007038087,-500.0,0.00024495,2]
[383581157,1757007038098,-400.0,0.00024495,2]
[383581158,1757007038108,-400.0,0.00024495,2]
[383581159,1757007038122,-401.57659943,0.00024495,2]
[383581160,1757007038133,-500.0,0.00024496,2]
[383581161,1757007038143,-500.0,0.00024496,2]
[383581162,1757007038154,-400.0,0.00024497,2]
[383581163,1757007038164,-400.0,0.00024497,2]
[383581164,1757007038175,-400.0,0.00024497,2]
[383581165,1757007038185,-400.0,0.00024497,2]
[383581166,1757007038195,-400.0,0.00024497,2]
[383581167,1757007038205,-346.11175114,0.00024497,2]
[383581168,1757007038215,-400.0,0.00024497,2]
[383581169,1757007038225,-409.82266166,0.00024497,2]
[383581170,1757007038545,-400.0,0.00024497,2]
[383581171,1757007038563,-337.8526275,0.00024497,2]
[383581172,1757007038573,-400.0,0.00024497,2]
[383581173,1757007038583,-402.4161831,0.00024497,2]
[383581174,1757007038592,-402.17550534,0.00024497,2]
[383581175,1757007038602,-400.0,0.00024497,2]
[383581176,1757007038611,-400.0,0.00024497,2]
[383581177,1757007038621,-400.0,0.00024497,2]
[383581178,1757007038630,-496.16483558,0.00024497,2]
[383581179,1757007038639,-400.0,0.00024497,2]
[383581180,1757007038649,-400.0,0.00024497,2]
[383581181,1757007038659,-400.0,0.00024497,2]
[383581182,1757007038669,-400.0,0.00024497,2]
[383581183,1757007038678,-456.84,0.00024497,2]
[383581184,1757007038687,-400.0,0.00024497,2]
[383581185,1757007038697,-400.0,0.00024497,2]
[383581186,1757007038706,-400.0,0.00024497,2]
[383581187,1757007038715,-911.663,0.00024558,7]
[383581188,1757007038724,-39456.4303428,0.00024559,2]
[383581189,1757007038734,-156.9118135,0.00024559,2]
[383581190,1757007038757,-200.0,0.00024569,2]
[383581191,1757007038769,-200.0,0.00024569,2]
[383581192,1757007038780,-1000.0,0.00024569,2]
[383581193,1757007038789,-1000.0,0.00024569,2]
[383581194,1757007038798,-1000.0,0.00024569,2]
[383581195,1757007038807,-282.946814,0.00024569,2]
[383581196,1757007038816,-200.0,0.00024569,2]
[383581197,1757007038826,-658.87746,0.00024569,2]
[383581198,1757007038835,-500.0,0.00024573,2]
[383581199,1757007038845,-1000.0,0.00024616,2]
[383581200,1757007038854,-313.49,0.00024627,2]
[383581201,1757007038863,-400.0,0.00024627,2]
[383581202,1757007038873,-399.73,0.00024627,2]
[383581203,1757007038882,-397.08,0.00024627,2]
[383581204,1757007038891,-400.0,0.00024627,2]
[383581205,1757007038901,-400.0,0.00024627,2]
[383581206,1757007038911,-400.0,0.00024627,2]
[383581207,1757007038921,-210.13,0.00024627,2]
[383581208,1757007038931,-400.0,0.00024627,2]
[383581209,1757007038941,-400.0,0.00024627,2]
[383581210,1757007038950,-366.74,0.00024627,2]
[383581211,1757007038959,-517.57,0.00024627,2]
[383581212,1757007038969,-151.0,0.00024627,7]
[383581213,1757007038979,-487.56,0.00024658,2]
[383581214,1757007038989,-151.0,0.00024658,7]
[383581215,1757007038998,-151.0,0.00024658,7]
[383581216,1757007039008,-179.406,0.00024658,7]
[383581217,1757007039018,-151.0,0.00024658,7]
[383581218,1757007039028,-151.0,0.00024658,7]
[383581219,1757007039037,-151.0,0.00024658,7]
[383581220,1757007039048,-155.009613,0.00024658,7]
[383581221,1757007039062,-151.0,0.00024658,7]
[383581222,1757007039070,-283.832923,0.00024658,7]
[383581223,1757007039078,-151.0,0.00024658,7]
[383581224,1757007039086,-151.0,0.00024658,7]
[383581225,1757007039095,-151.0,0.00024658,7]
[383581226,1757007039104,-1000.0,0.00024658,2]
[383581227,1757007039113,-3104.63133436,0.0002467,2]
[383581228,1757007039122,-248.71531821,0.00024688,2]
[383581229,1757007039132,-500.0,0.00024689,2]
[383581230,1757007039141,-3104.58,0.0002469,2]
[383581231,1757007039150,-500.0,0.00024699,2]
[383581232,1757007039159,-409.07729625,0.00024699,2]
[383581233,1757007039168,-9867.15488295,0.00024699,2]
[383581234,1757007039177,-400.0,0.000247,9]
[383581235,1757007039187,-209.79637596,0.0002471,2]
[383581236,1757007039196,-200.0,0.00024719,2]
[383581237,1757007039206,-150.0,0.00024719,2]
[383581238,1757007039215,-150.0,0.00024719,2]
[383581239,1757007039224,-160.15,0.0002476,2]
[383581240,1757007039233,-400.0,0.00024769,2]
[383581241,1757007039242,-318.67324451,0.00024769,2]
[383581242,1757007039251,-400.0,0.00024769,2]
[383581243,1757007039260,-512.5,0.00024769,2]
[383581244,1757007039269,-336.61,0.00024769,2]
[383581245,1757007039279,-292.99,0.00024769,2]
[383581246,1757007039288,-289.844458,0.00024769,2]
[383581247,1757007039297,-172.53,0.00024769,2]
[383581248,1757007039306,-634.54,0.00024769,2]
[383581249,1757007039315,-446.03,0.00024769,2]
[383581250,1757007039325,-400.0,0.00024769,2]
[383581251,1757007039334,-400.0,0.00024769,2]
[383581252,1757007039344,-155.7,0.00024769,2]
[383581253,1757007039353,-153.92,0.00024769,2]
[383581254,1757007039362,-283.34,0.00024769,2]
[383581255,1757007039371,-466.6,0.00024769,2]
[383581256,1757007039380,-314.29,0.00024769,2]
[383581257,1757007039389,-550.53,0.00024769,2]
[383581258,1757007039398,-400.0,0.00024769,2]
[383581259,1757007039408,-387.07,0.00024769,2]
[383581260,1757007039418,-246.85,0.00024769,2]
[383581261,1757007039427,-400.0,0.00024769,2]
[383581262,1757007039436,-400.0,0.00024769,2]
[383581263,1757007039445,-400.0,0.00024769,2]
[383581264,1757007039454,-316.69,0.00024769,2]
[383581265,1757007039464,-261.46,0.00024769,2]
[383581266,1757007039473,-502.3,0.00024769,2]
[383581267,1757007039483,-345.98,0.00024769,2]
[383581268,1757007039492,-325.16,0.00024769,2]
[383581269,1757007039501,-656.74,0.00024769,2]
[383581270,1757007039511,-314.07,0.00024769,2]
[383581271,1757007039520,-400.0,0.00024769,2]
[383581272,1757007039530,-400.0,0.00024769,2]
[383581273,1757007039540,-400.0,0.00024769,2]
[383581274,1757007039549,-400.0,0.00024769,2]
[383581275,1757007039559,-384.8,0.00024769,2]
[383581276,1757007039568,-400.0,0.00024769,2]
[383581277,1757007039578,-400.5,0.00024769,2]
[383581278,1757007039587,-400.0,0.00024769,2]
[383581279,1757007039596,-400.0,0.00024769,2]
[383581280,1757007039606,-400.0,0.00024769,2]
[383581281,1757007039616,-400.0,0.00024769,2]
[383581282,1757007039626,-400.0,0.00024769,2]
[383581283,1757007039636,-400.0,0.00024769,2]
[383581284,1757007039645,-400.0,0.00024769,2]
[383581285,1757007039654,-400.0,0.00024769,2]
[383581286,1757007039664,-254.2,0.00024769,2]
[383581287,1757007039673,-400.0,0.00024769,2]
[383581288,1757007039682,-325.89,0.00024769,2]
[383581289,1757007039691,-475.02,0.00024769,2]
[383581290,1757007039701,-400.0,0.00024769,2]
[383581291,1757007039710,-400.0,0.00024769,2]
[383581292,1757007039719,-400.0,0.00024769,2]
[383581293,1757007039729,-468.3,0.00024769,2]
[383581294,1757007039738,-219.09,0.00024769,2]
[383581295,1757007039747,-400.0,0.00024769,2]
[383581296,1757007039757,-329.31,0.00024769,2]
[383581297,1757007039767,-184.24,0.00024769,2]
[383581298,1757007039776,-279.12,0.00024769,2]
[383581299,1757007039786,-400.0,0.0002477,2]
[383581300,1757007039795,-400.0,0.0002477,2]
[383581301,1757007039804,-400.0,0.0002477,2]
[383581302,1757007039813,-305.55431078,0.0002477,2]
[383581303,1757007040063,-400.0,0.00024769,2]
[383581304,1757007040073,-97.06148637,0.0002477,2]
[383581305,1757007040083,-360.43,0.0002477,2]
[383581306,1757007040093,-453.0,0.0002477,2]
[383581307,1757007040102,-506.72,0.0002477,2]
[383581308,1757007040111,-400.0,0.0002477,2]
[383581309,1757007040121,-302.40350807,0.0002477,2]
[383581310,1757007040226,-398.81,0.00024769,2]
[383581311,1757007040236,-400.0,0.00024769,2]
[383581312,1757007040246,-83.26649193,0.0002477,2]
[383581313,1757007040255,-347.86,0.0002477,2]
[383581314,1757007040265,-380.84,0.0002477,2]
[383581315,1757007040274,-253.83,0.0002477,2]
[383581316,1757007040283,-475.98,0.0002477,2]
[383581317,1757007040293,-204.46,0.0002477,2]
[383581318,1757007040303,-187.08,0.0002477,2]
[383581319,1757007040313,-434.14,0.0002477,2]
[383581320,1757007040323,-400.0,0.0002477,2]
[383581321,1757007040332,-400.0,0.0002477,2]
[383581322,1757007040341,-400.0,0.0002477,2]
[383581323,1757007040350,-400.0,0.0002477,2]
[383581324,1757007040360,-153.61,0.0002477,2]
[383581325,1757007040370,-163.22,0.0002477,2]
[383581326,1757007040379,-367.5,0.0002477,2]
[383581327,1757007040388,-180.61,0.0002477,2]
[383581328,1757007040398,-159.72,0.0002477,2]
[383581329,1757007040409,-309.27,0.0002477,2]
[383581330,1757007040419,-190.54,0.0002477,2]
[383581331,1757007040428,-472.19,0.0002477,2]
[383581332,1757007040438,-400.0,0.0002477,2]
[383581333,1757007040449,-400.0,0.0002477,2]
[383581334,1757007040459,-400.0,0.0002477,2]
[383581335,1757007040470,-400.0,0.0002477,2]
[383581336,1757007040479,-544.73,0.0002477,2]
[383581337,1757007040489,-400.0,0.0002477,2]
[383581338,1757007040499,-466.21,0.0002477,2]
[383581339,1757007040508,-400.0,0.0002477,2]
[383581340,1757007040518,-400.0,0.0002477,2]
[383581341,1757007040528,-400.0,0.0002477,2]
[383581342,1757007040537,-400.0,0.0002477,2]
[383581343,1757007040546,-400.0,0.0002477,2]
[383581344,1757007040556,-494.58,0.0002477,2]
[383581345,1757007040566,-400.0,0.0002477,2]
[383581346,1757007040575,-400.0,0.0002477,2]
[383581347,1757007040584,-1000.0,0.0002477,2]
[383581348,1757007040593,-400.0,0.0002477,2]
[383581349,1757007040602,-400.0,0.0002477,2]
[383581350,1757007040612,-401.638634,0.0002477,2]
[383581351,1757007040621,-400.0,0.0002477,2]
[383581352,1757007040632,-400.0,0.0002477,2]
[383581353,1757007040642,-400.0,0.0002477,2]
[383581354,1757007040651,-400.0,0.0002477,2]
[383581355,1757007040661,-400.0,0.0002477,2]
[383581356,1757007040670,-400.0,0.0002477,2]
[383581357,1757007040679,-400.0,0.0002477,2]
[383581358,1757007040690,-400.0,0.0002477,2]
[383581359,1757007040699,-400.0,0.0002477,2]
[383581360,1757007040708,-400.0,0.0002477,2]
[383581361,1757007040719,-400.0,0.0002477,2]
[383581362,1757007040728,-405.35173381,0.0002477,2]
[383581363,1757007040739,-400.0,0.0002477,2]
[383581364,1757007040748,-400.0,0.0002477,2]
[383581365,1757007040759,-400.0,0.0002477,2]
[383581366,1757007040770,-400.0,0.0002477,2]
[383581367,1757007040779,-400.0,0.0002477,2]
[383581368,1757007040789,-400.0,0.0002477,2]
[383581369,1757007040799,-350.15,0.0002477,2]
[383581370,1757007040809,-400.0,0.0002477,2]
[383581371,1757007040819,-405.65772707,0.0002477,2]
[383581372,1757007040828,-400.0,0.0002477,2]
[383581373,1757007040839,-393.61,0.0002477,2]
[383581374,1757007040849,-400.0,0.0002477,2]
[383581375,1757007040860,-400.0,0.0002477,2]
[383581376,1757007040871,-400.0,0.0002477,2]
[383581377,1757007040881,-400.0,0.0002477,2]
[383581378,1757007040890,-400.0,0.0002477,2]
[383581379,1757007040899,-151.1,0.0002477,2]
[383581380,1757007040908,-400.0,0.0002477,2]
[383581381,1757007040918,-400.0,0.0002477,2]
[383581382,1757007040927,-380.43,0.0002477,2]
[383581383,1757007040938,-400.0,0.0002477,2]
[383581384,1757007040948,-400.0,0.0002477,2]
[383581385,1757007040957,-400.0,0.0002477,2]
[383581386,1757007040966,-400.0,0.0002477,2]
[383581387,1757007040975,-400.0,0.0002477,2]
[383581388,1757007040984,-244.74,0.0002477,2]
[383581389,1757007040994,-209.74,0.0002477,2]
[383581390,1757007041003,-400.0,0.0002477,2]
[383581391,1757007041013,-225.3,0.0002477,2]
[383581392,1757007041024,-400.0,0.0002477,2]
[383581393,1757007041033,-400.0,0.0002477,2]
[383581394,1757007041044,-400.0,0.0002477,2]
[383581395,1757007041055,-220.32,0.0002477,2]
[383581396,1757007041064,-400.0,0.0002477,2]
[383581397,1757007041074,-184.99,0.0002477,2]
[383581398,1757007041085,-400.0,0.0002477,2]
[383581399,1757007041094,-400.0,0.0002477,2]
[383581400,1757007041104,-181.04,0.0002477,2]
[383581401,1757007041114,-400.0,0.0002477,2]
[383581402,1757007041123,-400.0,0.0002477,2]
[383581403,1757007041133,-484.64,0.0002477,2]
[383581404,1757007041142,-256.89,0.0002477,2]
[383581405,1757007041152,-400.0,0.0002477,2]
[383581406,1757007041161,-460.09,0.0002477,2]
[383581407,1757007041172,-273.08,0.0002477,2]
[383581408,1757007041181,-260.56,0.0002477,2]
[383581409,1757007041191,-400.0,0.0002477,2]
[383581410,1757007041202,-406.45,0.0002477,2]
[383581411,1757007041212,-356.02,0.0002477,2]
[383581412,1757007041222,-400.0,0.0002477,2]
[383581413,1757007041231,-319.07,0.0002477,2]
[383581414,1757007041241,-337.04,0.0002477,2]
[383581415,1757007041250,-310.0,0.0002477,2]
[383581416,1757007041260,-400.0,0.0002477,2]
[383581417,1757007041270,-400.0,0.0002477,2]
[383581418,1757007041279,-158.71,0.0002477,2]
[383581419,1757007041289,-400.0,0.0002477,2]
[383581420,1757007041299,-541.07,0.0002477,2]
[383581421,1757007041308,-400.0,0.0002477,2]
[383581422,1757007041317,-166.58,0.0002477,2]
[383581423,1757007041327,-278.16,0.0002477,2]
[383581424,1757007041336,-400.0,0.0002477,2]
[383581425,1757007041346,-333.52,0.0002477,2]
[383581426,1757007041356,-520.93,0.0002477,2]
[383581427,1757007041366,-400.0,0.0002477,2]
[383581428,1757007041375,-286.01,0.0002477,2]
[383581429,1757007041386,-400.0,0.0002477,2]
[383581430,1757007041395,-400.0,0.0002477,2]
[383581431,1757007041404,-400.0,0.0002477,2]
[383581432,1757007041414,-400.0,0.0002477,2]
[383581433,1757007041423,-152.32,0.0002477,2]
[383581434,1757007041432,-400.0,0.0002477,2]
[383581435,1757007041442,-409.83,0.0002477,2]
[383581436,1757007041451,-400.0,0.0002477,2]
[383581437,1757007041460,-321.86,0.0002477,2]
[383581438,1757007041469,-400.0,0.0002477,2]
[383581439,1757007041478,-208.28,0.0002477,2]
[383581440,1757007041487,-348.28,0.0002477,2]
[383581441,1757007041497,-400.0,0.0002477,2]
[383581442,1757007041507,-400.0,0.0002477,2]
[383581443,1757007041517,-400.0,0.0002477,2]
[383581444,1757007041526,-322.18,0.0002477,2]
[383581445,1757007041536,-411.23,0.0002477,2]
[383581446,1757007041546,-400.0,0.0002477,2]
[383581447,1757007041555,-400.0,0.0002477,2]
[383581448,1757007041565,-402.11,0.0002477,2]
[383581449,1757007041574,-257.13,0.0002477,2]
[383581450,1757007041584,-400.0,0.0002477,2]
[383581451,1757007041593,-300.22,0.0002477,2]
[383581452,1757007041604,-241.16,0.0002477,2]
[383581453,1757007041614,-189.1,0.0002477,2]
[383581454,1757007041776,-400.0,0.0002477,2]
[383581455,1757007041787,-312.64,0.0002477,2]
[383581456,1757007041796,-400.0,0.0002477,2]